[Event "*** Titled Tuesday Blitz"]
[Site "Chess.com"]
[Date "2021.03.16"]
[Round "7"]
[White "Agnes66678"]
[Black "Storne89"]
[Result "0-1"]
[WhiteElo "2445"]
[BlackElo "2625"]
[TimeControl "180+1"]
[EndTime "11:16:15 PDT"]
[Termination "Storne89 won by resignation"]

1. d4 {[%clk 0:02:59.6]} 1... Nf6 {[%clk 0:02:59.7]} 2. c4 {[%clk 0:02:58.8]}
2... c5 {[%clk 0:02:59.9]} 3. d5 {[%clk 0:02:56.6]} 3... b5 {[%clk 0:03:00.4]}
4. cxb5 {[%clk 0:02:56.4]} 4... a6 {[%clk 0:03:00.9]} 5. bxa6 {[%clk 0:02:56.9]}
5... g6 {[%clk 0:03:01.4]} 6. Nc3 {[%clk 0:02:56.6]} 6... Bg7 {[%clk 0:03:01.8]}
7. e4 {[%clk 0:02:57]} 7... O-O {[%clk 0:03:02.4]} 8. e5 {[%clk 0:02:56.9]} 8...
Ne8 {[%clk 0:03:01.6]} 9. Nf3 {[%clk 0:02:54.2]} 9... d6 {[%clk 0:03:01.9]} 10.
h4 {[%clk 0:02:54.4]} 10... Bg4 {[%clk 0:02:56.3]} 11. h5 {[%clk 0:02:54.1]}
11... gxh5 {[%clk 0:02:49.8]} 12. e6 {[%clk 0:02:19]} 12... fxe6 {[%clk
0:02:44.8]} 13. dxe6 {[%clk 0:02:12.4]} 13... Nc6 {[%clk 0:02:44.2]} 14. Be2
{[%clk 0:02:02.5]} 14... Nc7 {[%clk 0:02:41.2]} 15. Ng5 {[%clk 0:02:00.2]} 15...
Ne5 {[%clk 0:02:08.3]} 16. f4 {[%clk 0:01:47.9]} 16... Bxe2 {[%clk 0:01:11.4]}
17. Qxe2 {[%clk 0:01:46.9]} 17... Ng4 {[%clk 0:01:11.7]} 18. Rxh5 {[%clk
0:01:44.3]} 18... Nf6 {[%clk 0:01:11.9]} 19. Rh3 {[%clk 0:01:38.8]} 19... Qc8
{[%clk 0:01:12.2]} 20. f5 {[%clk 0:01:30.8]} 20... Qxa6 {[%clk 0:01:11.8]} 21.
Qxa6 {[%clk 0:01:07.9]} 21... Nxa6 {[%clk 0:01:05]} 22. Bd2 {[%clk 0:01:02.7]}
22... Nb4 {[%clk 0:01:05.1]} 23. Kd1 {[%clk 0:01:02.1]} 23... Ng4 {[%clk
0:00:54]} 24. Rxh7 {[%clk 0:00:50]} 24... Rxf5 {[%clk 0:00:51.7]} 25. Be1 {[%clk
0:00:27.1]} 25... Rxg5 {[%clk 0:00:49.1]} 0-1

[Event "*** Titled Tuesday Blitz"]
[Site "Chess.com"]
[Date "2021.03.16"]
[Round "7"]
[White "VladaSviridova"]
[Black "akanga001"]
[Result "0-1"]
[WhiteElo "2208"]
[BlackElo "1984"]
[TimeControl "180+1"]
[EndTime "11:16:16 PDT"]
[Termination "akanga001 won on time"]

1. d4 {[%clk 0:03:00.9]} 1... Nf6 {[%clk 0:02:58.6]} 2. c4 {[%clk 0:03:01.2]}
2... b6 {[%clk 0:02:58.9]} 3. Nc3 {[%clk 0:02:59.9]} 3... Bb7 {[%clk 0:02:59]}
4. d5 {[%clk 0:02:59.9]} 4... d6 {[%clk 0:02:56.6]} 5. e4 {[%clk 0:02:59]} 5...
g6 {[%clk 0:02:56.5]} 6. Nge2 {[%clk 0:02:53.4]} 6... Bg7 {[%clk 0:02:56.3]} 7.
g3 {[%clk 0:02:53.8]} 7... O-O {[%clk 0:02:55.2]} 8. Bg2 {[%clk 0:02:54.4]} 8...
c5 {[%clk 0:02:54.8]} 9. O-O {[%clk 0:02:52.2]} 9... Nbd7 {[%clk 0:02:54.1]} 10.
f4 {[%clk 0:02:51.2]} 10... a6 {[%clk 0:02:42.7]} 11. a4 {[%clk 0:02:50.8]}
11... Qc7 {[%clk 0:02:40.8]} 12. h3 {[%clk 0:02:50.3]} 12... e6 {[%clk 0:02:40]}
13. dxe6 {[%clk 0:02:45.6]} 13... fxe6 {[%clk 0:02:38]} 14. Qd3 {[%clk
0:02:43.3]} 14... Rad8 {[%clk 0:02:10.3]} 15. Be3 {[%clk 0:02:43.1]} 15... Nb8
{[%clk 0:02:09]} 16. Rad1 {[%clk 0:02:40.1]} 16... Nc6 {[%clk 0:02:06.4]} 17.
Qd2 {[%clk 0:02:34.6]} 17... Nb4 {[%clk 0:02:06]} 18. Nc1 {[%clk 0:02:27.7]}
18... d5 {[%clk 0:01:58.4]} 19. cxd5 {[%clk 0:01:59.1]} 19... exd5 {[%clk
0:01:55.5]} 20. exd5 {[%clk 0:01:01.7]} 20... Nfxd5 {[%clk 0:01:51.4]} 21. Nxd5
{[%clk 0:01:01.6]} 21... Nxd5 {[%clk 0:01:48]} 22. Bxd5+ {[%clk 0:00:57.2]}
22... Rxd5 {[%clk 0:01:41.6]} 23. Qxd5+ {[%clk 0:00:48.7]} 23... Bxd5 {[%clk
0:01:36.2]} 24. Rxd5 {[%clk 0:00:48.2]} 24... Qc6 {[%clk 0:01:19.6]} 25. Rfd1
{[%clk 0:00:45.9]} 25... Qxa4 {[%clk 0:01:18.9]} 0-1

[Event "*** Titled Tuesday Blitz"]
[Site "Chess.com"]
[Date "2021.03.16"]
[Round "7"]
[White "kreonx"]
[Black "MuhittinBuker"]
[Result "1-0"]
[WhiteElo "2324"]
[BlackElo "2184"]
[TimeControl "180+1"]
[EndTime "11:16:28 PDT"]
[Termination "kreonx won on time"]

1. e4 {[%clk 0:03:00.9]} 1... e5 {[%clk 0:02:56.5]} 2. Nf3 {[%clk 0:03:00.2]}
2... Nc6 {[%clk 0:02:55.4]} 3. d4 {[%clk 0:03:00.7]} 3... exd4 {[%clk
0:02:54.9]} 4. Nxd4 {[%clk 0:03:01.6]} 4... Bc5 {[%clk 0:02:54]} 5. Be3 {[%clk
0:03:01.9]} 5... Qf6 {[%clk 0:02:52.7]} 6. c3 {[%clk 0:03:02.4]} 6... Nge7
{[%clk 0:02:50.8]} 7. g3 {[%clk 0:03:02.8]} 7... d5 {[%clk 0:02:45.5]} 8. Bg2
{[%clk 0:03:02.8]} 8... dxe4 {[%clk 0:02:45.1]} 9. Nd2 {[%clk 0:03:00.7]} 9...
Nxd4 {[%clk 0:02:27.2]} 10. Nxe4 {[%clk 0:03:00.6]} 10... Qc6 {[%clk 0:01:56.3]}
11. O-O {[%clk 0:02:45.9]} 11... O-O {[%clk 0:01:36.6]} 12. cxd4 {[%clk
0:02:24.1]} 12... Bb6 {[%clk 0:01:34]} 13. Bg5 {[%clk 0:02:18.9]} 13... Nd5
{[%clk 0:01:33]} 14. Rc1 {[%clk 0:02:08.6]} 14... Qg6 {[%clk 0:01:22]} 15. h4
{[%clk 0:02:06.1]} 15... Be6 {[%clk 0:01:19.8]} 16. h5 {[%clk 0:01:59.9]} 16...
Qf5 {[%clk 0:01:17.8]} 17. h6 {[%clk 0:01:39]} 17... f6 {[%clk 0:01:00]} 18.
hxg7 {[%clk 0:01:35.1]} 18... Rf7 {[%clk 0:00:59.6]} 19. Bh6 {[%clk 0:01:05.5]}
19... Qg6 {[%clk 0:00:57.5]} 20. Qd2 {[%clk 0:01:04.7]} 20... Bxd4 {[%clk
0:00:51.5]} 21. Qxd4 {[%clk 0:01:01.3]} 21... Qxh6 {[%clk 0:00:51]} 22. Nc5
{[%clk 0:00:59.4]} 1-0

[Event "*** Titled Tuesday Blitz"]
[Site "Chess.com"]
[Date "2021.03.16"]
[Round "7"]
[White "mishanick"]
[Black "Jumbo"]
[Result "1-0"]
[WhiteElo "3026"]
[BlackElo "2831"]
[TimeControl "180+1"]
[EndTime "11:16:30 PDT"]
[Termination "mishanick won by resignation"]

1. e4 {[%clk 0:03:00.4]} 1... e6 {[%clk 0:02:57.7]} 2. d4 {[%clk 0:03:00]} 2...
d5 {[%clk 0:02:58.2]} 3. Nc3 {[%clk 0:03:00.3]} 3... Nf6 {[%clk 0:02:58.2]} 4.
e5 {[%clk 0:02:59.6]} 4... Nfd7 {[%clk 0:02:58.2]} 5. f4 {[%clk 0:03:00.3]} 5...
c5 {[%clk 0:02:58.7]} 6. Nf3 {[%clk 0:03:01]} 6... Nc6 {[%clk 0:02:59.1]} 7. Be3
{[%clk 0:03:01.8]} 7... a6 {[%clk 0:02:58.6]} 8. Qd2 {[%clk 0:03:00.9]} 8... b5
{[%clk 0:02:58.9]} 9. a3 {[%clk 0:02:58.7]} 9... Be7 {[%clk 0:02:35.5]} 10. dxc5
{[%clk 0:02:50.7]} 10... Nxc5 {[%clk 0:02:33.5]} 11. b4 {[%clk 0:02:45.8]} 11...
Ne4 {[%clk 0:01:47.6]} 12. Nxe4 {[%clk 0:02:44.6]} 12... dxe4 {[%clk 0:01:48.5]}
13. Qxd8+ {[%clk 0:02:45]} 13... Bxd8 {[%clk 0:01:49]} 14. Nd2 {[%clk
0:02:45.7]} 14... f5 {[%clk 0:01:36.4]} 15. exf6 {[%clk 0:02:41.7]} 15... Bxf6
{[%clk 0:01:36.7]} 16. O-O-O {[%clk 0:02:37.3]} 16... a5 {[%clk 0:01:26.6]} 17.
Bxb5 {[%clk 0:02:36]} 17... Bd7 {[%clk 0:01:26.3]} 18. Nxe4 {[%clk 0:02:35.9]}
18... axb4 {[%clk 0:01:23.8]} 19. a4 {[%clk 0:02:21.8]} 19... Nb8 {[%clk
0:01:15.1]} 20. Rxd7 {[%clk 0:02:20.9]} 20... Nxd7 {[%clk 0:01:16]} 21. Rd1
{[%clk 0:02:20.3]} 21... O-O-O {[%clk 0:01:00.8]} 22. Nd6+ {[%clk 0:02:08.9]}
22... Kc7 {[%clk 0:01:01.1]} 23. Nf7 {[%clk 0:02:09.5]} 23... Nb6 {[%clk
0:00:44.4]} 24. Rxd8 {[%clk 0:01:29.3]} 24... Rxd8 {[%clk 0:00:41.7]} 25. Nxd8
{[%clk 0:01:29.7]} 25... Bxd8 {[%clk 0:00:40.9]} 26. Bd4 {[%clk 0:01:29.8]}
26... Bf6 {[%clk 0:00:21.7]} 27. Bc5 {[%clk 0:01:27.5]} 27... Nd5 {[%clk
0:00:20.5]} 28. g3 {[%clk 0:01:27.5]} 28... g5 {[%clk 0:00:15.4]} 29. fxg5
{[%clk 0:01:26]} 29... Bxg5+ {[%clk 0:00:15.5]} 30. Kb2 {[%clk 0:01:26.3]} 30...
h5 {[%clk 0:00:09.4]} 31. Kb3 {[%clk 0:01:23.6]} 31... h4 {[%clk 0:00:09.6]} 32.
a5 {[%clk 0:01:17.7]} 32... hxg3 {[%clk 0:00:08.8]} 33. hxg3 {[%clk 0:01:17.6]}
1-0

[Event "*** Titled Tuesday Blitz"]
[Site "Chess.com"]
[Date "2021.03.16"]
[Round "7"]
[White "WiktoriaPOL"]
[Black "Kurkusha"]
[Result "0-1"]
[WhiteElo "2115"]
[BlackElo "2353"]
[TimeControl "180+1"]
[EndTime "11:16:30 PDT"]
[Termination "Kurkusha won by resignation"]

1. c4 {[%clk 0:03:00.9]} 1... e6 {[%clk 0:02:59.7]} 2. Nc3 {[%clk 0:03:00.6]}
2... d5 {[%clk 0:02:59.8]} 3. d4 {[%clk 0:03:00.3]} 3... Nf6 {[%clk 0:02:59.2]}
4. cxd5 {[%clk 0:03:00.4]} 4... exd5 {[%clk 0:02:58.9]} 5. Bg5 {[%clk
0:03:00.4]} 5... Be7 {[%clk 0:02:57.4]} 6. e3 {[%clk 0:03:00.6]} 6... c6 {[%clk
0:02:57.3]} 7. Bd3 {[%clk 0:03:00.7]} 7... O-O {[%clk 0:02:57.4]} 8. Qc2 {[%clk
0:03:00.8]} 8... h6 {[%clk 0:02:57.5]} 9. Bh4 {[%clk 0:03:00.3]} 9... Re8 {[%clk
0:02:57.4]} 10. Nge2 {[%clk 0:02:59.9]} 10... Ne4 {[%clk 0:02:56.8]} 11. Bxe7
{[%clk 0:02:57.1]} 11... Qxe7 {[%clk 0:02:57.7]} 12. O-O {[%clk 0:02:47.3]}
12... Nd7 {[%clk 0:02:56.4]} 13. Rae1 {[%clk 0:02:45.4]} 13... Ndf6 {[%clk
0:02:55.9]} 14. f3 {[%clk 0:02:43.7]} 14... Nxc3 {[%clk 0:02:54.5]} 15. Nxc3
{[%clk 0:02:43.5]} 15... Qd6 {[%clk 0:02:55]} 16. Qf2 {[%clk 0:02:40.6]} 16...
Be6 {[%clk 0:02:26.6]} 17. h3 {[%clk 0:02:33.6]} 17... Rad8 {[%clk 0:02:23.9]}
18. Ne2 {[%clk 0:02:15.4]} 18... c5 {[%clk 0:02:12.4]} 19. dxc5 {[%clk
0:02:12.9]} 19... Qxc5 {[%clk 0:02:09.7]} 20. Nd4 {[%clk 0:02:13]} 20... Qb4
{[%clk 0:02:03.8]} 21. a3 {[%clk 0:02:07.9]} 21... Qb6 {[%clk 0:01:59.5]} 22.
Rc1 {[%clk 0:01:57.7]} 22... Rc8 {[%clk 0:01:56.4]} 23. Qd2 {[%clk 0:01:52.3]}
23... Nd7 {[%clk 0:01:47.3]} 24. b4 {[%clk 0:01:45.4]} 24... Ne5 {[%clk
0:01:45.6]} 25. Be2 {[%clk 0:01:42.5]} 25... Nc4 {[%clk 0:01:41]} 26. Bxc4
{[%clk 0:01:41.1]} 26... dxc4 {[%clk 0:01:40.1]} 27. Kh1 {[%clk 0:01:33.1]}
27... Qa6 {[%clk 0:01:34.6]} 28. Nxe6 {[%clk 0:01:28.1]} 28... Rxe6 {[%clk
0:01:33.5]} 29. Qc3 {[%clk 0:01:26.9]} 29... b5 {[%clk 0:01:29.3]} 30. e4 {[%clk
0:01:25.6]} 30... Qb6 {[%clk 0:01:28.9]} 31. Rcd1 {[%clk 0:01:23.7]} 31... Rd8
{[%clk 0:01:27.9]} 32. Rd2 {[%clk 0:01:08.2]} 32... Rxd2 {[%clk 0:01:27]} 33.
Qxd2 {[%clk 0:01:07.7]} 33... Rd6 {[%clk 0:01:27.6]} 34. Qc2 {[%clk 0:01:05.4]}
34... Qd4 {[%clk 0:01:22.3]} 35. a4 {[%clk 0:00:52.9]} 35... a6 {[%clk 0:01:22]}
36. axb5 {[%clk 0:00:52]} 36... axb5 {[%clk 0:01:22.9]} 37. Ra1 {[%clk
0:00:49.2]} 37... Qxa1+ {[%clk 0:01:19.7]} 38. Kh2 {[%clk 0:00:48.6]} 38... Qe5+
{[%clk 0:01:18.2]} 39. Kh1 {[%clk 0:00:48.3]} 39... Qd4 {[%clk 0:01:16.7]} 40.
Qa2 {[%clk 0:00:47.3]} 40... c3 {[%clk 0:01:14.6]} 41. Qa8+ {[%clk 0:00:45.6]}
41... Kh7 {[%clk 0:01:14.4]} 42. Qc8 {[%clk 0:00:45.2]} 42... Rg6 {[%clk
0:01:09.4]} 43. Kh2 {[%clk 0:00:43.5]} 43... Qf2 {[%clk 0:01:07.4]} 0-1

[Event "*** Titled Tuesday Blitz"]
[Site "Chess.com"]
[Date "2021.03.16"]
[Round "7"]
[White "anon132639"]
[Black "GigaQuparadze"]
[Result "0-1"]
[WhiteElo "2752"]
[BlackElo "2936"]
[TimeControl "180+1"]
[EndTime "11:16:36 PDT"]
[Termination "GigaQuparadze won on time"]

1. e4 {[%clk 0:03:00.9]} 1... c5 {[%clk 0:02:59.7]} 2. Nf3 {[%clk 0:03:00.2]}
2... e6 {[%clk 0:02:59.8]} 3. b4 {[%clk 0:02:58.5]} 3... cxb4 {[%clk 0:02:59.5]}
4. a3 {[%clk 0:02:57.9]} 4... Nf6 {[%clk 0:02:58.7]} 5. e5 {[%clk 0:02:51.5]}
5... Nd5 {[%clk 0:02:58.8]} 6. axb4 {[%clk 0:02:51.9]} 6... Bxb4 {[%clk
0:02:58.9]} 7. c3 {[%clk 0:02:51.8]} 7... Be7 {[%clk 0:02:57.9]} 8. d4 {[%clk
0:02:50.8]} 8... d6 {[%clk 0:02:57.3]} 9. Bd3 {[%clk 0:02:48.8]} 9... dxe5
{[%clk 0:02:52]} 10. dxe5 {[%clk 0:02:36.2]} 10... Nd7 {[%clk 0:02:49.3]} 11.
O-O {[%clk 0:02:35.3]} 11... Nc5 {[%clk 0:02:49.5]} 12. Bc2 {[%clk 0:02:32.1]}
12... O-O {[%clk 0:02:47.9]} 13. Qe2 {[%clk 0:02:24.7]} 13... Bd7 {[%clk
0:02:31.7]} 14. Nd4 {[%clk 0:02:18.4]} 14... Qc7 {[%clk 0:02:27.5]} 15. f4
{[%clk 0:02:05.9]} 15... Na6 {[%clk 0:02:09.5]} 16. Bd2 {[%clk 0:01:55.1]} 16...
Bc5 {[%clk 0:02:07.7]} 17. Qe4 {[%clk 0:01:40.5]} 17... g6 {[%clk 0:02:02.9]}
18. Kh1 {[%clk 0:01:13.4]} 18... Rac8 {[%clk 0:01:59.9]} 19. Bd3 {[%clk
0:00:55.6]} 19... Bb6 {[%clk 0:01:37.3]} 20. Rxa6 {[%clk 0:00:49.4]} 20... bxa6
{[%clk 0:01:38.2]} 21. f5 {[%clk 0:00:49.3]} 21... Bxd4 {[%clk 0:01:27.4]} 22.
cxd4 {[%clk 0:00:45.6]} 22... Bb5 {[%clk 0:01:27.4]} 23. f6 {[%clk 0:00:25.8]}
23... Bxd3 {[%clk 0:01:25.1]} 24. Qxd3 {[%clk 0:00:19.9]} 24... Qc4 {[%clk
0:01:24.9]} 25. Qf3 {[%clk 0:00:14.4]} 25... Qxd4 {[%clk 0:01:24]} 26. Re1
{[%clk 0:00:12.1]} 26... Rc2 {[%clk 0:01:22.2]} 27. Qh3 {[%clk 0:00:10.1]} 27...
h5 {[%clk 0:01:14.1]} 28. Qg3 {[%clk 0:00:04.2]} 28... Rxd2 {[%clk 0:01:13]} 29.
Nxd2 {[%clk 0:00:03.6]} 29... Qxd2 {[%clk 0:01:12.4]} 30. Rb1 {[%clk 0:00:04.2]}
30... Rc8 {[%clk 0:01:11]} 0-1

[Event "*** Titled Tuesday Blitz"]
[Site "Chess.com"]
[Date "2021.03.16"]
[Round "7"]
[White "chess4life23"]
[Black "Pinkito"]
[Result "0-1"]
[WhiteElo "2291"]
[BlackElo "2443"]
[TimeControl "180+1"]
[EndTime "11:16:49 PDT"]
[Termination "Pinkito won by resignation"]

1. d4 {[%clk 0:03:00.9]} 1... e6 {[%clk 0:02:59.6]} 2. Nf3 {[%clk 0:02:58.1]}
2... f5 {[%clk 0:02:59.4]} 3. g3 {[%clk 0:02:58]} 3... Nf6 {[%clk 0:02:59.1]} 4.
Bg2 {[%clk 0:02:58.5]} 4... Be7 {[%clk 0:02:56.5]} 5. O-O {[%clk 0:02:59]} 5...
O-O {[%clk 0:02:56.4]} 6. b3 {[%clk 0:02:59.4]} 6... d6 {[%clk 0:02:56.5]} 7.
Bb2 {[%clk 0:02:59.6]} 7... a5 {[%clk 0:02:56.8]} 8. a3 {[%clk 0:02:59.4]} 8...
a4 {[%clk 0:02:56.6]} 9. b4 {[%clk 0:02:57.9]} 9... Ne4 {[%clk 0:02:56.4]} 10.
c4 {[%clk 0:02:57.5]} 10... Bf6 {[%clk 0:02:56.2]} 11. Nbd2 {[%clk 0:02:49.5]}
11... c6 {[%clk 0:02:47.2]} 12. Rc1 {[%clk 0:02:25.8]} 12... Nd7 {[%clk
0:02:46.1]} 13. Nxe4 {[%clk 0:02:20.8]} 13... fxe4 {[%clk 0:02:45.9]} 14. Nd2
{[%clk 0:02:20.6]} 14... d5 {[%clk 0:02:45.5]} 15. e3 {[%clk 0:02:06.6]} 15...
b5 {[%clk 0:02:23.8]} 16. cxd5 {[%clk 0:02:03.6]} 16... cxd5 {[%clk 0:02:22]}
17. f3 {[%clk 0:02:03.9]} 17... exf3 {[%clk 0:02:21.4]} 18. Bxf3 {[%clk
0:02:04.2]} 18... Bb7 {[%clk 0:02:20.5]} 19. e4 {[%clk 0:02:03.7]} 19... Qb6
{[%clk 0:02:04.6]} 20. Rc5 {[%clk 0:01:23]} 20... Nxc5 {[%clk 0:01:43.7]} 21.
bxc5 {[%clk 0:01:10.5]} 21... Qa5 {[%clk 0:01:42.4]} 22. Bg4 {[%clk 0:01:03.1]}
22... dxe4 {[%clk 0:01:34.9]} 23. Bxe6+ {[%clk 0:01:02.7]} 23... Kh8 {[%clk
0:01:35.2]} 24. Nb1 {[%clk 0:00:42.3]} 24... b4 {[%clk 0:01:26.7]} 25. axb4
{[%clk 0:00:40.3]} 25... Qxb4 {[%clk 0:01:26.4]} 26. Bc3 {[%clk 0:00:38.9]}
26... Qb5 {[%clk 0:01:19.8]} 27. Na3 {[%clk 0:00:29.9]} 27... Qe8 {[%clk
0:01:12.1]} 28. Bf5 {[%clk 0:00:20.5]} 28... Rd8 {[%clk 0:01:05.8]} 29. Nc4
{[%clk 0:00:19.7]} 29... e3 {[%clk 0:00:56.9]} 30. Nd6 {[%clk 0:00:15.8]} 30...
Rxd6 {[%clk 0:00:54.7]} 31. cxd6 {[%clk 0:00:16.7]} 31... e2 {[%clk 0:00:54.7]}
32. d7 {[%clk 0:00:09.3]} 32... exd1=Q {[%clk 0:00:50.4]} 0-1

[Event "*** Titled Tuesday Blitz"]
[Site "Chess.com"]
[Date "2021.03.16"]
[Round "7"]
[White "Oligan22"]
[Black "Piacramling"]
[Result "0-1"]
[WhiteElo "2477"]
[BlackElo "2356"]
[TimeControl "180+1"]
[EndTime "11:17:00 PDT"]
[Termination "Piacramling won by checkmate"]

1. e4 {[%clk 0:03:00.9]} 1... c5 {[%clk 0:02:59.3]} 2. Nf3 {[%clk 0:03:00.4]}
2... Nc6 {[%clk 0:02:58.3]} 3. d4 {[%clk 0:03:00.7]} 3... cxd4 {[%clk
0:02:57.9]} 4. Nxd4 {[%clk 0:03:01.6]} 4... e6 {[%clk 0:02:55.7]} 5. Nc3 {[%clk
0:03:01.8]} 5... Qc7 {[%clk 0:02:55.9]} 6. Be3 {[%clk 0:03:00.2]} 6... a6 {[%clk
0:02:55.2]} 7. a3 {[%clk 0:03:00.9]} 7... Nf6 {[%clk 0:02:51.9]} 8. f4 {[%clk
0:03:00]} 8... d6 {[%clk 0:02:50.6]} 9. Qf3 {[%clk 0:02:59.7]} 9... Nxd4 {[%clk
0:02:45.4]} 10. Bxd4 {[%clk 0:02:59.6]} 10... e5 {[%clk 0:02:45.3]} 11. Be3
{[%clk 0:02:48.7]} 11... exf4 {[%clk 0:02:40.1]} 12. Bxf4 {[%clk 0:02:47.4]}
12... Be6 {[%clk 0:02:40]} 13. h3 {[%clk 0:02:36.8]} 13... Be7 {[%clk
0:02:33.6]} 14. O-O-O {[%clk 0:02:36.3]} 14... O-O {[%clk 0:02:33.5]} 15. g4
{[%clk 0:02:30.8]} 15... Nd7 {[%clk 0:02:33]} 16. Qg3 {[%clk 0:02:26.9]} 16...
Ne5 {[%clk 0:02:32.2]} 17. Bd3 {[%clk 0:02:19.8]} 17... b5 {[%clk 0:02:30.6]}
18. Rhe1 {[%clk 0:02:15.2]} 18... Rab8 {[%clk 0:02:30.2]} 19. Nd5 {[%clk
0:02:07.6]} 19... Bxd5 {[%clk 0:02:29.5]} 20. exd5 {[%clk 0:02:08.5]} 20... b4
{[%clk 0:02:22.1]} 21. axb4 {[%clk 0:02:02.1]} 21... Rxb4 {[%clk 0:02:21]} 22.
Bxe5 {[%clk 0:01:30.5]} 22... dxe5 {[%clk 0:02:16.6]} 23. Qxe5 {[%clk
0:01:31.4]} 23... Bd6 {[%clk 0:02:14.4]} 24. Qf5 {[%clk 0:01:06.8]} 24... g6
{[%clk 0:02:13.1]} 25. Qf6 {[%clk 0:01:03.3]} 25... Rfb8 {[%clk 0:02:01.2]} 26.
Kd2 {[%clk 0:00:49.6]} 26... Rf4 {[%clk 0:01:53.9]} 27. Qh4 {[%clk 0:00:33.8]}
27... Qb6 {[%clk 0:01:48.5]} 28. Re4 {[%clk 0:00:15.8]} 28... Rf2+ {[%clk
0:00:56.1]} 29. Re2 {[%clk 0:00:16]} 29... Bf4+ {[%clk 0:00:49]} 30. Ke1 {[%clk
0:00:16.1]} 30... Rf3 {[%clk 0:00:36.7]} 31. Rg2 {[%clk 0:00:14.7]} 31... Bg3+
{[%clk 0:00:32.3]} 32. Rxg3 {[%clk 0:00:14.6]} 32... Qf2# {[%clk 0:00:31.7]} 0-1

[Event "*** Titled Tuesday Blitz"]
[Site "Chess.com"]
[Date "2021.03.16"]
[Round "7"]
[White "VinzentSpitzl"]
[Black "AttilaTurzo"]
[Result "1-0"]
[WhiteElo "2379"]
[BlackElo "2530"]
[TimeControl "180+1"]
[EndTime "11:17:03 PDT"]
[Termination "VinzentSpitzl won by checkmate"]

1. e4 {[%clk 0:03:00.9]} 1... c5 {[%clk 0:02:59.7]} 2. Nf3 {[%clk 0:02:58]} 2...
Nc6 {[%clk 0:03:00.2]} 3. d4 {[%clk 0:02:57.9]} 3... cxd4 {[%clk 0:03:01.1]} 4.
Nxd4 {[%clk 0:02:58.5]} 4... Nf6 {[%clk 0:03:01.8]} 5. Nc3 {[%clk 0:02:58.4]}
5... d6 {[%clk 0:03:02.4]} 6. Bg5 {[%clk 0:02:57.6]} 6... e6 {[%clk 0:03:02.8]}
7. Qd2 {[%clk 0:02:57.6]} 7... a6 {[%clk 0:03:03.2]} 8. O-O-O {[%clk 0:02:56.1]}
8... Bd7 {[%clk 0:03:03.8]} 9. f3 {[%clk 0:02:55.3]} 9... Nxd4 {[%clk
0:02:57.2]} 10. Qxd4 {[%clk 0:02:53.8]} 10... b5 {[%clk 0:02:53.5]} 11. h4
{[%clk 0:02:41.7]} 11... Be7 {[%clk 0:02:52.3]} 12. g4 {[%clk 0:02:39.9]} 12...
h5 {[%clk 0:02:49.9]} 13. gxh5 {[%clk 0:02:30.1]} 13... Rxh5 {[%clk 0:02:39.7]}
14. Be2 {[%clk 0:02:22.3]} 14... Qc7 {[%clk 0:02:32.7]} 15. f4 {[%clk
0:02:08.5]} 15... Rh8 {[%clk 0:02:32.3]} 16. e5 {[%clk 0:02:02]} 16... dxe5
{[%clk 0:02:27.3]} 17. fxe5 {[%clk 0:02:01.1]} 17... Ng8 {[%clk 0:02:24.3]} 18.
Ne4 {[%clk 0:01:51.4]} 18... Nh6 {[%clk 0:02:18.7]} 19. Nd6+ {[%clk 0:01:39.5]}
19... Kf8 {[%clk 0:02:05.3]} 20. Rdf1 {[%clk 0:01:16.4]} 20... Be8 {[%clk
0:01:59.5]} 21. Bxe7+ {[%clk 0:00:41.8]} 21... Qxe7 {[%clk 0:01:58.1]} 22. Rf4
{[%clk 0:00:39.9]} 22... Rd8 {[%clk 0:01:45.3]} 23. Qf2 {[%clk 0:00:33.3]} 23...
Nf5 {[%clk 0:01:26.4]} 24. Nxf5 {[%clk 0:00:32.3]} 24... exf5 {[%clk 0:01:27.3]}
25. Rxf5 {[%clk 0:00:31.8]} 25... Bd7 {[%clk 0:01:26.2]} 26. Rf4 {[%clk
0:00:30.9]} 26... Be6 {[%clk 0:01:22.7]} 27. Kb1 {[%clk 0:00:29.8]} 27... Qd7
{[%clk 0:01:11.9]} 28. Bd3 {[%clk 0:00:28.9]} 28... Qd5 {[%clk 0:01:09.9]} 29.
Rg1 {[%clk 0:00:18.1]} 29... Qxa2+ {[%clk 0:01:06.3]} 30. Kc1 {[%clk 0:00:18.3]}
30... Qa1+ {[%clk 0:01:06.4]} 31. Kd2 {[%clk 0:00:18.8]} 31... Qxb2 {[%clk
0:01:06.6]} 32. Qc5+ {[%clk 0:00:17.9]} 32... Kg8 {[%clk 0:01:02.8]} 33. Qe7
{[%clk 0:00:08.2]} 33... Rd7 {[%clk 0:00:43.8]} 34. Qe8# {[%clk 0:00:05]} 1-0

[Event "*** Titled Tuesday Blitz"]
[Site "Chess.com"]
[Date "2021.03.16"]
[Round "7"]
[White "mbojan"]
[Black "Zhigalko_Sergei"]
[Result "0-1"]
[WhiteElo "2652"]
[BlackElo "2942"]
[TimeControl "180+1"]
[EndTime "11:17:08 PDT"]
[Termination "Zhigalko_Sergei won on time"]

1. Nf3 {[%clk 0:03:00.9]} 1... d5 {[%clk 0:02:59]} 2. g3 {[%clk 0:02:59]} 2...
c6 {[%clk 0:02:59]} 3. Bg2 {[%clk 0:02:59]} 3... Bg4 {[%clk 0:02:59.6]} 4. O-O
{[%clk 0:02:58.4]} 4... Nd7 {[%clk 0:03:00.1]} 5. d4 {[%clk 0:02:56.8]} 5...
Ngf6 {[%clk 0:02:59.9]} 6. Nbd2 {[%clk 0:02:51.2]} 6... e6 {[%clk 0:02:59.8]} 7.
c3 {[%clk 0:02:51]} 7... Be7 {[%clk 0:02:59.5]} 8. Re1 {[%clk 0:02:49.3]} 8...
O-O {[%clk 0:02:57.7]} 9. e4 {[%clk 0:02:48.2]} 9... h6 {[%clk 0:02:54.2]} 10.
h3 {[%clk 0:02:35.1]} 10... Bh5 {[%clk 0:02:53.7]} 11. exd5 {[%clk 0:01:55.7]}
11... cxd5 {[%clk 0:02:49.4]} 12. Nf1 {[%clk 0:01:54.8]} 12... b5 {[%clk
0:02:44.3]} 13. Bf4 {[%clk 0:01:45.3]} 13... a5 {[%clk 0:02:37.5]} 14. g4 {[%clk
0:01:39.7]} 14... Bg6 {[%clk 0:02:36.5]} 15. Ne5 {[%clk 0:01:39.4]} 15... Nxe5
{[%clk 0:02:36]} 16. Bxe5 {[%clk 0:01:39.6]} 16... b4 {[%clk 0:02:28.8]} 17. c4
{[%clk 0:01:17.6]} 17... dxc4 {[%clk 0:02:28.4]} 18. Bxa8 {[%clk 0:01:18.5]}
18... Qxa8 {[%clk 0:02:29]} 19. Rc1 {[%clk 0:01:15.7]} 19... Rc8 {[%clk
0:01:32.1]} 20. Ne3 {[%clk 0:01:15.2]} 20... c3 {[%clk 0:01:07.5]} 21. bxc3
{[%clk 0:01:12.7]} 21... bxc3 {[%clk 0:01:08.4]} 22. d5 {[%clk 0:01:12.9]} 22...
Ne4 {[%clk 0:01:00.2]} 23. d6 {[%clk 0:00:28.3]} 23... Bh4 {[%clk 0:00:41.5]}
24. Rc2 {[%clk 0:00:11.3]} 24... Ng5 {[%clk 0:00:39.5]} 25. d7 {[%clk
0:00:07.2]} 25... Rd8 {[%clk 0:00:39.2]} 26. Bc7 {[%clk 0:00:06.3]} 26... Nf3+
{[%clk 0:00:37.9]} 27. Kf1 {[%clk 0:00:02]} 27... Bxc2 {[%clk 0:00:30.1]} 0-1